bitfinex-derivatives/quotes_BTCF0:USTF0_20241218
["timestamp","ask_amount","ask_price","bid_price","bid_amount"]
[1734488401376,0.047449,105370.0,105360.0,0.01011061]
[1734488401970,0.47111027,105370.0,105360.0,0.01011061]
[1734488402173,0.77111027,105370.0,105360.0,0.01011061]
[1734488402566,0.47111027,105370.0,105360.0,0.01011061]
[1734488403177,0.77111027,105370.0,105360.0,0.01011061]
[1734488403865,0.83397154,105370.0,105350.0,0.0005]
[1734488404067,0.047458,105350.0,105340.0,0.01]
[1734488404372,0.47111927,105350.0,105340.0,0.01]
[1734488404569,0.80791927,105350.0,105340.0,0.01]
[1734488405070,0.80791927,105350.0,105340.0,0.010117]
[1734488405466,0.76046127,105350.0,105310.0,0.3708942]
[1734488405663,0.047476,105310.0,105300.0,0.3608]
[1734488405867,0.47113327,105320.0,105310.0,0.01]
[1734488406169,0.408272,105320.0,105310.0,0.01]
[1734488406563,0.047472,105320.0,105310.0,0.01007842]
[1734488406964,0.408272,105320.0,105310.0,0.01007842]
[1734488407669,0.408272,105320.0,105310.0,0.05755442]
[1734488408069,0.408272,105320.0,105310.0,0.04755442]
[1734488408568,0.47113327,105320.0,105310.0,7.842e-05]
[1734488408788,0.64249486,105320.0,105310.0,7.842e-05]
[1734488409174,0.80269486,105320.0,105310.0,7.842e-05]
[1734488410778,0.729872,105320.0,105310.0,7.842e-05]
[1734488411076,0.408272,105320.0,105310.0,7.842e-05]
[1734488412177,0.47113327,105320.0,105310.0,7.842e-05]
[1734488412371,0.77113327,105320.0,105310.0,4.2e-07]
[1734488414081,0.47113327,105320.0,105310.0,4.2e-07]
[1734488415578,0.408272,105320.0,105310.0,4.2e-07]
[1734488416571,0.408272,105320.0,105310.0,0.04747642]
[1734488416769,0.3608,105320.0,105310.0,0.04747642]
[1734488417876,0.408272,105320.0,105310.0,0.04747642]
[1734488419775,0.408272,105320.0,105310.0,0.04797642]
[1734488420571,0.40837935,105330.0,105310.0,0.40877642]
[1734488420886,0.40837935,105330.0,105310.0,0.04797642]
[1734488421279,0.40837935,105330.0,105310.0,0.40877642]
[1734488422087,0.047472,105320.0,105310.0,0.04797642]
[1734488423284,0.11033327,105320.0,105310.0,0.04797642]
[1734488423485,0.47113327,105320.0,105310.0,0.00050042]
[1734488424383,0.63293327,105320.0,105310.0,0.00050042]
[1734488425784,0.408272,105320.0,105310.0,0.00050042]
[1734488427077,0.3608,105320.0,105310.0,0.04797642]
[1734488427284,0.3608,105320.0,105310.0,0.22017642]
[1734488427485,0.408272,105320.0,105310.0,0.22017642]
[1734488427884,0.408272,105320.0,105310.0,0.21967642]
[1734488428184,0.3608,105320.0,105310.0,0.21967642]
[1734488428491,0.40837935,105330.0,105310.0,0.58047642]
[1734488428689,0.40837935,105330.0,105320.0,0.3265]
[1734488428895,0.53410189,105330.0,105320.0,0.1678]
[1734488430595,0.047472,105320.0,105310.0,4.2e-07]
[1734488430891,0.47113327,105320.0,105310.0,4.2e-07]
[1734488431089,0.11033327,105320.0,105310.0,4.2e-07]
[1734488431887,0.47113327,105320.0,105310.0,4.2e-07]
[1734488432289,0.81723327,105320.0,105310.0,4.2e-07]
[1734488435583,0.47113327,105320.0,105310.0,4.2e-07]
[1734488435883,0.11033327,105320.0,105310.0,4.2e-07]
[1734488436082,0.11033327,105320.0,105310.0,0.17360042]
[1734488436279,0.06286127,105320.0,105310.0,0.22107642]
[1734488438492,0.40837835,105330.0,105310.0,0.61369084]
[1734488438796,0.40837835,105330.0,105310.0,0.58187642]
[1734488438996,0.40837835,105330.0,105320.0,0.1637]
[1734488439592,0.04757835,105330.0,105320.0,0.211172]
[1734488439889,0.11032827,105330.0,105320.0,0.37031442]
[1734488440095,0.47112827,105330.0,105320.0,0.19551442]
[1734488440394,0.47112827,105330.0,105320.0,0.03181442]
[1734488441094,0.408267,105330.0,105320.0,0.03181442]
[1734488441297,0.408267,105330.0,105320.0,0.0563655]
[1734488443692,0.58694094,105340.0,105320.0,0.39261442]
[1734488443693,0.57154267,105340.0,105320.0,0.39261442]
[1734488443995,0.40834267,105340.0,105330.0,0.047467]
[1734488444192,0.40834267,105340.0,105330.0,0.24558142]
[1734488444395,0.40834267,105340.0,105330.0,0.213767]
[1734488444892,0.40884267,105340.0,105330.0,0.24558142]
[1734488445891,0.36087967,105340.0,105330.0,0.24558142]
[1734488446098,0.36087967,105340.0,105330.0,0.41738142]
[1734488446695,7.967e-05,105340.0,105330.0,0.41738142]
[1734488446885,0.00057967,105340.0,105330.0,0.41738142]
[1734488447196,0.00057967,105340.0,105330.0,0.385567]
[1734488447995,7.967e-05,105340.0,105330.0,0.385567]
[1734488448887,0.00057967,105340.0,105330.0,0.385567]
[1734488449089,0.00057967,105340.0,105330.0,0.80922827]
[1734488449896,7.967e-05,105340.0,105330.0,1.11812174]
[1734488450095,7.967e-05,105340.0,105330.0,0.83212987]
[1734488450304,7.967e-05,105340.0,105330.0,0.80922827]
[1734488450798,7.967e-05,105340.0,105330.0,0.83212987]
[1734488450999,7.967e-05,105340.0,105330.0,0.746367]
[1734488451201,7.967e-05,105340.0,105330.0,0.75622336]
[1734488452299,7.967e-05,105340.0,105330.0,0.81908463]
[1734488454403,0.91785,105370.0,105360.0,0.047454]
[1734488454703,0.04745,105370.0,105360.0,0.047454]
[1734488454907,0.8714,105380.0,105360.0,0.047454]
[1734488455205,0.92897229,105380.0,105360.0,0.047454]
[1734488455402,0.92908366,105380.0,105370.0,0.04752]
[1734488456199,0.56828366,105380.0,105370.0,0.04752]
[1734488456703,0.92908366,105380.0,105370.0,0.04752]
[1734488457103,0.94778339,105380.0,105370.0,0.04752]
[1734488457494,0.94778339,105380.0,105370.0,7.1e-05]
[1734488459195,0.94778339,105380.0,105370.0,0.04752]
[1734488459599,0.78178339,105380.0,105370.0,0.04752]
[1734488459800,0.76308366,105380.0,105370.0,0.04752]
[1734488459999,0.76308366,105380.0,105370.0,0.47118127]
[1734488460000,0.00011137,105380.0,105370.0,0.47118127]
[1734488460207,0.00011137,105380.0,105370.0,0.96458127]
[1734488460806,0.1733,105400.0,105370.0,0.96458127]
[1734488461102,0.745232,105410.0,105380.0,0.42366127]
[1734488461103,0.6978,105410.0,105380.0,0.42366127]
[1734488461312,0.42366127,105390.0,105380.0,0.047443]
[1734488461493,0.42366127,105390.0,105370.0,0.047519]
[1734488461494,0.047445,105380.0,105370.0,0.047519]
[1734488461694,0.220745,105380.0,105370.0,7.1e-05]
[1734488461898,0.557745,105380.0,105370.0,7.1e-05]
[1734488463799,0.918545,105380.0,105370.0,0.04752]
[1734488465213,0.557745,105380.0,105370.0,0.04752]
[1734488465708,0.5103,105380.0,105370.0,0.04752]
[1734488465899,0.57351686,105390.0,105380.0,0.047445]
[1734488466504,0.00057586,105390.0,105380.0,0.47110627]
[1734488466809,0.00057586,105390.0,105380.0,0.97220627]
[1734488467805,0.59231616,105410.0,105400.0,0.047436]
[1734488469103,0.59231616,105410.0,105390.0,0.408238]
[1734488469299,0.047436,105400.0,105390.0,0.047438]
[1734488469505,0.408236,105400.0,105390.0,0.047438]
[1734488469900,0.047436,105400.0,105390.0,0.047438]
[1734488472004,0.408236,105400.0,105390.0,0.047438]
[1734488474609,0.047436,105400.0,105390.0,0.047438]
[1734488474810,0.408236,105400.0,105390.0,0.047438]
[1734488475107,0.0005,105390.0,105370.0,7.1e-05]
[1734488475308,0.408245,105380.0,105370.0,7.1e-05]
[1734488475513,0.580645,105380.0,105370.0,7.1e-05]
[1734488479313,0.734041,105390.0,105380.0,0.047445]
[1734488479518,0.569541,105390.0,105380.0,0.047445]
[1734488479923,0.047445,105380.0,105370.0,0.408319]
[1734488480214,0.569542,105390.0,105380.0,0.047445]
[1734488480415,0.047445,105380.0,105370.0,0.44011407]
[1734488480607,0.047445,105380.0,105370.0,0.07931407]
[1734488481004,0.047445,105380.0,105370.0,0.4312206]
[1734488481418,0.047445,105380.0,105370.0,0.44011407]
[1734488482714,0.047445,105380.0,105370.0,0.07931407]
[1734488483020,0.047445,105380.0,105370.0,0.0704206]
[1734488483320,0.047445,105380.0,105370.0,0.047519]
[1734488483925,0.5221,105390.0,105370.0,7.1e-05]
[1734488484225,0.408241,105390.0,105380.0,0.047445]
[1734488484415,0.408241,105390.0,105380.0,0.0703466]
[1734488484617,0.047441,105390.0,105380.0,0.5987466]
[1734488484815,0.047441,105390.0,105380.0,0.215045]
[1734488485517,0.047441,105390.0,105380.0,0.905045]
[1734488485723,0.408237,105400.0,105390.0,0.04744]
[1734488486024,0.408737,105400.0,105390.0,0.04744]
[1734488487017,0.408237,105400.0,105390.0,0.04744]
[1734488488127,0.408737,105400.0,105390.0,0.04744]
[1734488489124,0.047937,105400.0,105390.0,0.04744]
[1734488490015,0.04744,105390.0,105380.0,0.215043]
[1734488490229,0.04744,105390.0,105380.0,0.0229016]
[1734488490230,0.11030127,105390.0,105380.0,0.0229016]
[1734488490419,0.56914,105390.0,105370.0,0.33892823]
[1734488490724,0.20834,105390.0,105370.0,0.33003476]
[1734488490921,0.20834,105390.0,105370.0,0.2351186]
[1734488491123,0.56914,105390.0,105370.0,0.2351186]
[1734488491325,0.56914,105390.0,105370.0,0.33003476]
[1734488491519,0.56914,105390.0,105370.0,0.30713316]
[1734488491717,0.56914,105390.0,105370.0,0.212217]
[1734488492117,0.56914,105390.0,105370.0,0.573017]
[1734488492613,0.56914,105390.0,105370.0,0.27507827]
[1734488492822,0.40824,105390.0,105380.0,0.047445]
[1734488494720,0.41807374,105390.0,105380.0,0.047445]
[1734488497333,0.41807374,105390.0,105380.0,0.14236116]
[1734488497724,0.41807374,105390.0,105380.0,0.16526276]
[1734488498529,0.41807374,105390.0,105380.0,0.14236116]
[1734488499329,0.41807374,105390.0,105380.0,0.047445]
[1734488500627,0.41807374,105390.0,105380.0,0.63544808]
[1734488500826,0.41807374,105390.0,105380.0,0.73925771]
[1734488501422,0.41807374,105390.0,105380.0,0.17415623]
[1734488501831,0.41807374,105390.0,105380.0,0.16526276]
[1734488502630,0.05727374,105390.0,105380.0,0.16526276]
[1734488502938,0.41807374,105390.0,105380.0,0.17415623]
[1734488504446,0.37063374,105390.0,105380.0,0.73925771]
[1734488504942,0.41807474,105390.0,105380.0,0.73925771]
[1734488505241,0.41807474,105390.0,105380.0,0.74899839]
[1734488505633,0.41807474,105390.0,105380.0,0.05718568]
[1734488506634,0.41807474,105390.0,105380.0,0.047445]
[1734488507738,0.41807474,105390.0,105370.0,0.58843227]
[1734488507944,0.48093601,105390.0,105370.0,0.90403071]
[1734488508443,0.41807474,105390.0,105370.0,0.90403071]
[1734488509538,0.37063374,105390.0,105380.0,0.047445]
[1734488509743,0.37063374,105390.0,105380.0,0.07924007]
[1734488509934,0.37063374,105390.0,105380.0,0.17415623]
[1734488510241,0.408738,105400.0,105380.0,0.17415623]
[1734488510440,0.408738,105400.0,105390.0,0.04744]
[1734488510630,0.408738,105400.0,105390.0,0.17415123]
[1734488510944,0.408238,105400.0,105390.0,0.15124963]
[1734488511241,0.408238,105400.0,105390.0,0.14235616]
[1734488511642,0.408238,105400.0,105390.0,0.09491616]
[1734488511844,0.47109927,105400.0,105390.0,0.12671123]
[1734488512037,0.47109927,105400.0,105390.0,0.09491616]
[1734488513645,0.04744,105390.0,105380.0,0.14236016]
[1734488513843,0.57644,105390.0,105380.0,0.14236016]
[1734488514347,0.57644,105390.0,105380.0,0.17415523]
[1734488514539,0.57644,105390.0,105380.0,0.11781776]
[1734488514845,0.57644,105390.0,105380.0,0.09491616]
[1734488517545,0.40824,105390.0,105380.0,0.14236116]
[1734488517749,0.04744,105390.0,105380.0,0.17415623]
[1734488517949,0.04744,105390.0,105380.0,0.73925771]
[1734488518946,0.40824,105390.0,105380.0,0.73925771]
[1734488519139,0.04744,105390.0,105380.0,0.73925771]
[1734488519550,0.40824,105390.0,105380.0,0.73925771]
[1734488519840,0.04744,105390.0,105380.0,0.14236116]
[1734488520043,0.04744,105390.0,105380.0,0.16526276]
[1734488520348,0.04744,105390.0,105380.0,0.14236116]
[1734488520845,0.04744,105390.0,105380.0,0.047445]
[1734488522348,0.05721353,105400.0,105390.0,0.04744]
[1734488522643,0.409212,105410.0,105400.0,0.047436]
[1734488522845,0.408732,105410.0,105400.0,0.047436]
[1734488523050,0.408232,105410.0,105400.0,0.047436]
[1734488523347,0.43667857,105420.0,105400.0,0.06286127]
[1734488523547,0.43667857,105420.0,105410.0,0.047431]
[1734488523758,0.43667857,105420.0,105410.0,0.14234716]
[1734488524047,0.43667857,105420.0,105410.0,0.047431]
[1734488525843,0.07587857,105420.0,105410.0,0.047431]
[1734488526750,0.43667857,105420.0,105400.0,0.747634]
[1734488526944,0.0005,105410.0,105400.0,0.747634]
[1734488528048,0.43667857,105420.0,105400.0,0.747634]
[1734488529042,0.0005,105410.0,105400.0,0.747634]
[1734488530042,0.43667857,105420.0,105400.0,0.747634]
[1734488531044,0.0005,105410.0,105400.0,0.75724552]
[1734488534043,0.00985435,105420.0,105410.0,0.047431]
[1734488534249,0.00985435,105420.0,105410.0,0.207031]
[1734488534859,0.05728135,105420.0,105410.0,0.207031]
[1734488535051,0.05778135,105420.0,105410.0,0.207031]
[1734488535953,0.05728135,105420.0,105410.0,0.207031]
[1734488536161,9.606e-05,105420.0,105410.0,0.26989227]
[1734488536362,9.606e-05,105420.0,105410.0,0.63069227]
[1734488536751,9.606e-05,105420.0,105410.0,0.72560843]
[1734488536951,0.00059606,105420.0,105410.0,0.72560843]
[1734488537157,0.00059606,105420.0,105410.0,0.63069227]
[1734488537764,0.00059606,105420.0,105410.0,0.207031]
[1734488537954,9.606e-05,105420.0,105410.0,0.207031]
[1734488538459,0.47118333,105420.0,105410.0,0.1596]
[1734488538666,0.47118333,105420.0,105390.0,0.300439]
[1734488538667,0.047431,105410.0,105390.0,0.300439]
[1734488538863,0.047435,105400.0,105390.0,0.300439]
[1734488541264,0.047435,105400.0,105390.0,0.047439]
[1734488541851,0.567533,105410.0,105390.0,0.047439]
[1734488542063,0.408233,105410.0,105390.0,0.047439]
[1734488542263,0.047435,105400.0,105390.0,0.047439]
[1734488544668,0.04744,105390.0,105380.0,0.99746016]
[1734488544964,0.04744,105390.0,105380.0,0.99796016]
[1734488545164,0.408236,105400.0,105390.0,0.04744]
[1734488545370,0.04744,105390.0,105380.0,0.903044]
[1734488546065,0.04744,105390.0,105380.0,0.902544]
[1734488546271,0.3608,105400.0,105380.0,0.902544]
[1734488546457,0.3608,105400.0,105390.0,0.04744]
[1734488546458,0.408237,105400.0,105390.0,0.04744]
[1734488550677,0.04744,105390.0,105380.0,0.902543]
[1734488550979,0.04744,105390.0,105380.0,0.903043]
[1734488551970,0.04744,105390.0,105380.0,0.902543]
[1734488553076,0.408238,105400.0,105390.0,0.04744]
[1734488558277,0.04744,105390.0,105380.0,0.542244]
[1734488558582,0.40824,105390.0,105380.0,0.0005]
[1734488558890,0.85964,105390.0,105380.0,0.0005]
[1734488559288,0.85964,105390.0,105380.0,0.047945]
[1734488559672,0.3608,105400.0,105390.0,0.04744]
[1734488559673,0.408237,105400.0,105390.0,0.04744]
[1734488560877,0.047437,105400.0,105390.0,0.04744]
[1734488562383,0.047437,105400.0,105390.0,0.14235616]
[1734488562890,0.047437,105400.0,105390.0,0.04744]
[1734488564284,0.5731842,105410.0,105400.0,0.047435]
[1734488564580,0.0571842,105410.0,105400.0,0.20521243]
[1734488564784,0.0571842,105410.0,105400.0,0.35311243]
[1734488565278,0.0571842,105410.0,105400.0,0.29025116]
[1734488565486,0.0571842,105410.0,105400.0,0.25819627]
[1734488565879,0.0571842,105410.0,105400.0,0.50091243]
[1734488566080,0.53304532,105420.0,105400.0,0.45347743]
[1734488566277,0.04802406,105420.0,105410.0,0.11029227]
[1734488566478,0.05790083,105420.0,105410.0,0.11029227]
[1734488566685,0.047431,105410.0,105400.0,0.09491616]
[1734488566880,0.47109227,105410.0,105390.0,0.03179507]
[1734488567084,0.047444,105380.0,105370.0,0.53591947]
[1734488567495,0.047444,105380.0,105370.0,0.44011507]
[1734488568184,0.047444,105380.0,105370.0,0.44061507]
[1734488568977,0.047444,105380.0,105370.0,0.44011507]
[1734488569986,0.047444,105380.0,105370.0,0.44061507]
[1734488570284,0.408244,105380.0,105370.0,0.05691347]
[1734488570988,0.408244,105380.0,105370.0,0.05641347]
[1734488571287,0.408244,105380.0,105370.0,0.04752]
[1734488572081,0.408244,105380.0,105370.0,0.04802]
[1734488572281,0.408241,105390.0,105380.0,0.047445]
[1734488572892,0.408241,105390.0,105370.0,0.048019]
[1734488573083,0.408241,105390.0,105370.0,0.047519]
[1734488573685,0.408241,105390.0,105370.0,0.408319]
[1734488574084,0.408241,105390.0,105370.0,0.408819]
[1734488574690,0.408241,105390.0,105370.0,0.44061407]
[1734488575096,0.408241,105390.0,105370.0,0.44011407]
[1734488575293,0.408241,105390.0,105380.0,0.047445]
[1734488579588,0.408241,105390.0,105380.0,0.508545]
[1734488581702,0.52109403,105400.0,105390.0,0.04744]
[1734488581899,0.83397803,105400.0,105380.0,0.8219]
[1734488582098,0.04744,105390.0,105380.0,0.508543]
[1734488582293,0.40824,105390.0,105380.0,0.508543]
[1734488584696,0.047445,105380.0,105370.0,0.048019]
[1734488585096,0.193545,105380.0,105370.0,0.048019]
[1734488586209,0.193545,105380.0,105370.0,0.047519]
[1734488588598,0.193545,105380.0,105370.0,7.1e-05]
[1734488588799,0.61720627,105380.0,105370.0,7.1e-05]
[1734488588998,0.91860627,105380.0,105370.0,7.1e-05]
[1734488589209,1.21860627,105380.0,105370.0,7.1e-05]
[1734488590004,0.855745,105380.0,105370.0,0.03186607]
[1734488590509,0.855745,105380.0,105370.0,0.59969541]
[1734488590694,0.855745,105380.0,105370.0,0.03186607]
[1734488590896,0.5048493,105380.0,105370.0,0.07931507]
[1734488591211,0.047441,105390.0,105380.0,0.047445]
[1734488591412,0.047441,105390.0,105380.0,0.64674472]
[1734488592202,0.53182087,105400.0,105380.0,0.64674472]
[1734488592203,0.57975687,105400.0,105380.0,0.64674472]
[1734488592398,0.57975687,105400.0,105380.0,0.07924007]
[1734488592701,0.57975687,105400.0,105380.0,0.85582938]
[1734488592901,0.57975687,105400.0,105380.0,0.38104007]
[1734488593100,0.57925687,105400.0,105390.0,0.04744]
[1734488593306,0.07582336,105400.0,105390.0,0.04744]
[1734488593509,0.41770249,105400.0,105390.0,0.07923507]
[1734488594003,0.408236,105400.0,105390.0,0.2158416]
[1734488594211,0.408236,105400.0,105390.0,0.28759634]
[1734488594212,0.0005,105400.0,105390.0,0.28759634]
[1734488594405,0.0005,105400.0,105390.0,0.84432438]
[1734488595001,0.0005,105400.0,105390.0,0.19294]
[1734488595210,0.56594927,105410.0,105390.0,0.19294]
[1734488595411,0.62881054,105410.0,105390.0,0.19294]
[1734488596005,0.56594927,105410.0,105390.0,0.19294]
[1734488596211,0.0005,105400.0,105390.0,0.19294]
[1734488597213,0.56594927,105410.0,105390.0,0.19294]
[1734488597708,0.51851727,105410.0,105390.0,0.19294]
[1734488598010,0.05724927,105410.0,105400.0,0.047435]
[1734488598407,0.41804927,105410.0,105400.0,0.047435]
[1734488599307,0.41854927,105410.0,105400.0,0.047435]
[1734488599508,0.04744,105390.0,105370.0,0.3608]
[1734488599711,0.83684254,105380.0,105350.0,0.56755927]
[1734488599917,0.48652254,105360.0,105330.0,0.3147]
[1734488600104,0.408259,105350.0,105330.0,0.362163]
[1734488600307,0.047459,105350.0,105340.0,0.047463]
[1734488600605,0.408258,105350.0,105340.0,0.04758177]
[1734488600810,0.47111927,105350.0,105340.0,0.00011877]
[1734488601006,0.408258,105350.0,105340.0,0.00011877]
[1734488601510,0.47111927,105350.0,105340.0,0.00011877]
[1734488601713,0.61751927,105350.0,105340.0,0.00011877]
[1734488602312,0.554658,105350.0,105340.0,0.00011877]
[1734488607616,0.51694857,105350.0,105340.0,0.11044304]
[1734488607808,0.37054857,105350.0,105340.0,0.11044304]
[1734488608410,0.37054857,105350.0,105340.0,0.04758177]
[1734488609815,0.00974857,105350.0,105340.0,0.04758177]
[1734488610014,0.04755668,105360.0,105340.0,0.04758177]
[1734488610315,0.36090268,105360.0,105350.0,0.11081927]
[1734488610518,0.36090268,105360.0,105350.0,0.047958]
[1734488611322,0.37041697,105360.0,105350.0,0.047458]
[1734488612217,0.37041697,105360.0,105350.0,0.047958]
[1734488614126,0.37041697,105360.0,105350.0,0.047458]
[1734488614419,0.41787097,105360.0,105340.0,0.15361877]
[1734488614622,0.41787097,105360.0,105340.0,0.20108077]
[1734488615120,0.41787097,105360.0,105340.0,0.20158077]
[1734488616124,0.41787097,105360.0,105350.0,0.047458]
[1734488616125,0.37041697,105360.0,105350.0,0.047458]
[1734488616423,0.00961697,105360.0,105350.0,0.11031927]
[1734488616725,0.00961697,105360.0,105350.0,0.25861927]
[1734488619016,0.00010268,105360.0,105350.0,0.61941927]
[1734488620226,0.558341,105390.0,105380.0,0.047445]
[1734488622617,0.408241,105390.0,105380.0,0.047445]
[1734488622823,0.71404703,105400.0,105390.0,0.04744]
[1734488623218,0.40834703,105400.0,105390.0,0.04744]
[1734488623427,0.37057591,105400.0,105390.0,0.11041948]
[1734488623614,0.37057591,105400.0,105390.0,0.04755821]
[1734488624321,0.00977591,105400.0,105390.0,0.04755821]
[1734488626620,0.00011103,105400.0,105390.0,0.11041948]
[1734488626830,0.00011103,105400.0,105390.0,0.47121948]
[1734488628730,0.00011103,105400.0,105390.0,0.53408075]
[1734488629132,0.00061103,105400.0,105390.0,0.53408075]
[1734488633947,0.00061103,105400.0,105390.0,0.47121948]
[1734488634229,0.00061103,105400.0,105390.0,0.53408075]
[1734488637421,0.00061103,105400.0,105390.0,0.78708075]
[1734488639639,0.82695156,105430.0,105390.0,1.08708075]
[1734488639938,0.82695156,105430.0,105420.0,0.11028727]
[1734488640122,0.82695156,105430.0,105420.0,0.047426]
[1734488642940,0.88981283,105430.0,105410.0,0.04743]
[1734488643129,0.3608,105420.0,105410.0,0.04743]
[1734488643439,0.3608,105420.0,105400.0,0.047435]
[1734488643440,0.047432,105410.0,105400.0,0.047435]
[1734488644235,0.047932,105410.0,105400.0,0.047435]
[1734488645234,0.047432,105410.0,105400.0,0.047435]
[1734488645533,0.408232,105410.0,105400.0,0.047435]
[1734488646840,0.047435,105400.0,105390.0,0.11041848]
[1734488647146,0.696735,105400.0,105390.0,0.04755721]
[1734488648740,0.75959627,105400.0,105390.0,0.00011821]
[1734488648941,0.047444,105380.0,105370.0,0.047448]
[1734488649140,0.408244,105380.0,105370.0,0.047948]
[1734488649327,0.408244,105380.0,105370.0,0.0005]
[1734488650052,0.408244,105380.0,105370.0,0.00060458]
[1734488650239,0.408244,105380.0,105370.0,0.00010458]
[1734488652345,0.408244,105380.0,105370.0,0.00060458]
[1734488653233,0.408244,105380.0,105370.0,0.00010458]
[1734488654147,0.408244,105380.0,105370.0,0.00060458]
[1734488654537,0.41771394,105380.0,105370.0,0.00060458]
[1734488655232,0.41771394,105380.0,105370.0,0.00010458]
[1734488656145,0.41771394,105380.0,105370.0,0.00060458]
[1734488657240,0.41771394,105380.0,105370.0,0.00010458]
[1734488658344,0.41771394,105380.0,105370.0,0.00060458]
[1734488659135,0.41771394,105380.0,105370.0,0.00010458]
[1734488660246,0.41771394,105380.0,105370.0,0.00060458]
[1734488662943,0.48057521,105380.0,105370.0,0.00060458]
[1734488663334,0.78057521,105380.0,105370.0,0.00060458]
[1734488663539,0.78057521,105380.0,105370.0,1e-08]
[1734488663750,0.047454,105360.0,105350.0,0.047457]
[1734488664346,0.047454,105360.0,105340.0,0.3608]
[1734488664646,0.047458,105350.0,105340.0,0.047461]
[1734488664950,0.047458,105350.0,105340.0,0.04757288]
[1734488670754,0.047458,105350.0,105340.0,0.40837288]
[1734488671545,0.04745,105370.0,105360.0,0.047452]
[1734488671749,0.3608,105380.0,105360.0,0.047452]
[1734488671954,0.408252,105370.0,105350.0,0.06869121]
[1734488672244,0.408252,105370.0,105350.0,0.06919121]
[1734488672453,0.408252,105370.0,105350.0,0.047956]
[1734488672648,0.408252,105370.0,105360.0,0.047454]
[1734488673047,0.408252,105370.0,105350.0,0.047957]
[1734488673242,0.408254,105360.0,105350.0,0.047457]
[1734488673649,0.047454,105360.0,105350.0,0.047457]
[1734488674152,0.408254,105360.0,105350.0,0.047957]
[1734488675253,0.408254,105360.0,105350.0,0.047457]
[1734488675455,0.047454,105360.0,105350.0,0.047457]
[1734488679358,0.047454,105360.0,105350.0,0.05635076]
[1734488679656,0.047454,105360.0,105350.0,0.06869221]
[1734488680952,0.40825,105370.0,105360.0,0.047454]
[1734488687265,0.3608,105370.0,105360.0,0.11031527]
[1734488687458,0.56609196,105380.0,105370.0,0.047449]
[1734488688173,0.41629196,105380.0,105370.0,0.047449]
[1734488688655,0.41629196,105380.0,105370.0,0.24631027]
[1734488688656,0.3608,105380.0,105370.0,0.24631027]
[1734488689364,0.3613,105380.0,105370.0,0.24631027]
[1734488689768,0.0005,105380.0,105370.0,0.24631027]
[1734488690064,0.0005,105380.0,105370.0,0.38981027]
[1734488690270,0.41620394,105390.0,105380.0,0.047445]
[1734488691065,0.3608,105390.0,105380.0,0.11030627]
[1734488691364,0.184437,105400.0,105390.0,0.04744]
[1734488691668,0.691832,105410.0,105400.0,0.047435]
[1734488692369,0.69981425,105410.0,105400.0,0.047435]
[1734488693277,0.05541425,105410.0,105400.0,0.047435]
[1734488695181,0.41621425,105410.0,105400.0,0.047435]
[1734488695471,0.36878225,105410.0,105400.0,0.11029627]
[1734488695670,0.00798225,105410.0,105400.0,0.047435]
[1734488695871,0.540667,105420.0,105400.0,0.047431]
[1734488696072,0.198182,105420.0,105400.0,0.047431]
[1734488696275,0.007955,105420.0,105410.0,0.11029227]
[1734488696674,0.5065,105430.0,105410.0,0.11029227]
[1734488696882,0.5065,105430.0,105420.0,0.047426]
[1734488697974,0.553922,105430.0,105420.0,0.047426]
[1734488699067,0.553922,105430.0,105390.0,0.00011536]
[1734488699068,0.047435,105400.0,105390.0,0.00011536]
[1734488699267,0.47159627,105400.0,105390.0,0.00011536]
[1734488699667,0.60749627,105400.0,105390.0,0.00011536]
[1734488700274,0.544135,105400.0,105390.0,0.00011536]
[1734488701280,0.544635,105400.0,105390.0,0.00011536]
[1734488702172,0.680335,105400.0,105390.0,0.00011536]
[1734488702378,0.679835,105400.0,105390.0,0.00011536]
[1734488703375,0.680335,105400.0,105390.0,0.00011536]
[1734488703682,0.68830648,105400.0,105390.0,0.00011536]
[1734488704381,0.75066775,105400.0,105390.0,0.00011536]
[1734488704685,0.75066775,105400.0,105360.0,0.047953]
[1734488704686,0.047449,105370.0,105360.0,0.047953]
[1734488704979,0.047449,105370.0,105360.0,0.0005]
[1734488705479,0.047454,105360.0,105350.0,0.047457]
[1734488705882,0.047454,105360.0,105350.0,0.04754179]
[1734488706481,0.47111527,105360.0,105350.0,8.479e-05]
[1734488707683,0.61581527,105360.0,105350.0,8.479e-05]
[1734488707987,0.76231527,105360.0,105350.0,8.479e-05]
[1734488711786,0.77029134,105360.0,105350.0,8.479e-05]
[1734488712593,0.62379134,105360.0,105350.0,8.479e-05]
[1734488719289,0.62379134,105360.0,105350.0,0.00058479]
[1734488719685,0.64269166,105360.0,105350.0,0.00058479]
[1734488720994,0.57983039,105360.0,105350.0,0.00058479]
[1734488721794,0.64269166,105360.0,105350.0,0.00058479]
[1734488724701,0.70555293,105360.0,105350.0,1e-08]
[1734488724898,0.64269166,105360.0,105350.0,1e-08]
[1734488725806,0.64269166,105360.0,105350.0,9.845e-05]
[1734488727507,0.64269166,105360.0,105350.0,9.844e-05]
[1734488727797,0.57983039,105360.0,105350.0,9.844e-05]
[1734488728099,0.49799166,105360.0,105350.0,9.844e-05]
[1734488734102,0.49799166,105360.0,105350.0,0.14079844]
[1734488734310,0.43513039,105360.0,105350.0,0.14079844]
[1734488736309,0.43513039,105360.0,105350.0,0.1496922]
[1734488736903,0.41623007,105360.0,105350.0,0.17100802]
[1734488737107,0.41623007,105360.0,105350.0,0.14079844]
[1734488737306,0.47909134,105360.0,105350.0,9.844e-05]
[1734488738413,0.49779615,105360.0,105350.0,9.844e-05]
[1734488739710,0.49779615,105360.0,105350.0,0.0089922]
[1734488740014,0.49779615,105360.0,105350.0,0.03030802]
[1734488740812,0.43493488,105360.0,105350.0,0.03030802]
[1734488741117,0.49779615,105360.0,105350.0,0.03030802]
[1734488742808,0.49779615,105360.0,105350.0,0.07776602]
[1734488742809,0.43493488,105360.0,105350.0,0.07776602]
[1734488743008,0.49779615,105360.0,105350.0,0.22266602]
[1734488744914,0.49779615,105360.0,105350.0,0.2013502]
[1734488745112,0.00797607,105360.0,105350.0,0.5621502]
[1734488745317,0.00010979,105370.0,105360.0,0.047454]
[1734488745512,0.00010979,105370.0,105360.0,0.68804776]
[1734488746113,0.00010979,105370.0,105360.0,0.70936285]
[1734488747420,0.00010979,105370.0,105360.0,0.68804776]
[1734488747719,0.00010979,105370.0,105360.0,0.318354]
[1734488749827,0.00010979,105370.0,105360.0,0.33966909]